fUSD/lending_fUSD_20250614
["ID","MTS","AMOUNT","RATE_DAILY","PERIOD"]
[365825231,1749940243849,-327.446561,0.00017,2]
[365825232,1749940243858,-327.446561,0.00017,2]
[365825235,1749940243867,-327.446561,0.00017,2]
[365825238,1749940243877,-151.0,0.00017,2]
[365825241,1749940243887,-151.0,0.00017,2]
[365825243,1749940243897,-151.0,0.00017,2]
[365825245,1749940243906,-151.0,0.00017,2]
[365825248,1749940243916,-151.0,0.00017,2]
[365825251,1749940243925,-151.0,0.00017,2]
[365825254,1749940243935,-151.0,0.00017,2]
[365825256,1749940243944,-151.0,0.00017,2]
[365825258,1749940243956,-151.0,0.00017,2]
[365825260,1749940243968,-151.0,0.00017,2]
[365825261,1749940243978,-151.0,0.00017,2]
[365825263,1749940243988,-151.0,0.00017,2]
[365825266,1749940243998,-151.0,0.00017,2]
[365825268,1749940244008,-151.0,0.00017,2]
[365825270,1749940244017,-151.0,0.00017,2]
[365825272,1749940244027,-151.0,0.00017,2]
[365825274,1749940244036,-151.0,0.00017,2]
[365825275,1749940244046,-151.0,0.00017,2]
[365825277,1749940244055,-151.0,0.00017,2]
[365825280,1749940244065,-151.0,0.00017,2]
[365825282,1749940244075,-151.0,0.00017,2]
[365825283,1749940244084,-257.594218,0.00017,2]
[365825285,1749940244093,-281.858951,0.00017,2]
[365825287,1749940244103,-281.858951,0.00017,2]
[365825289,1749940244113,-281.858951,0.00017,2]
[365825291,1749940244123,-281.858951,0.00017,2]
[365825292,1749940244133,-151.0,0.00017,2]
[365825293,1749940244143,-151.0,0.00017,2]
[365825294,1749940244153,-151.0,0.00017,2]
[365825295,1749940244163,-151.0,0.00017,2]
[365825296,1749940244172,-151.371907,0.00017,2]
[365825297,1749940244182,-172.897032,0.00017,2]
[365825298,1749940244192,-172.897032,0.00017,2]
[365825299,1749940244202,-172.897032,0.00017,2]
[365825300,1749940244213,-172.897032,0.00017,2]
[365825301,1749940244223,-151.0,0.00017,2]
[365825302,1749940244232,-174.629563,0.00017,2]
[365825303,1749940244242,-174.629563,0.00017,2]
[365825304,1749940244251,-174.629563,0.00017,2]
[365825305,1749940244262,-174.629563,0.00017,2]
[365825307,1749940244271,-228.179865,0.00017,2]
[365825309,1749940244281,-151.0,0.00017,2]
[365825311,1749940244291,-151.0,0.00017,2]
[365825314,1749940244302,-151.0,0.00017,2]
[365825316,1749940244312,-151.0,0.00017,2]
[365825318,1749940244321,-151.0,0.00017,2]
[365825320,1749940244331,-151.0,0.00017,2]
[365825322,1749940244340,-151.0,0.00017,2]
[365825324,1749940244350,-151.0,0.00017,2]
[365825326,1749940244359,-151.0,0.00017,2]
[365825327,1749940244368,-151.0,0.00017,2]
[365825329,1749940244378,-151.0,0.00017,2]
[365825331,1749940244387,-295.51424132,0.00017,2]
[365825333,1749940244397,-151.304481,0.00017,2]
[365825336,1749940244407,-151.0,0.00017,2]
[365825338,1749940244417,-151.0,0.00017,2]
[365825340,1749940244426,-160.387324,0.00017,2]
[365825341,1749940244436,-160.387324,0.00017,2]
[365825343,1749940244445,-160.387324,0.00017,2]
[365825346,1749940244455,-160.387324,0.00017,2]
[365825347,1749940244465,-212.275852,0.00017,2]
[365825349,1749940244476,-212.275852,0.00017,2]
[365825351,1749940244486,-212.275852,0.00017,2]
[365825354,1749940244496,-212.275852,0.00017,2]
[365825356,1749940244506,-200.0,0.00017,2]
[365825357,1749940244515,-201.447868,0.00017,2]
[365825359,1749940244524,-201.447868,0.00017,2]
[365825361,1749940244534,-201.447868,0.00017,2]
[365825363,1749940244544,-201.447868,0.00017,2]
[365825365,1749940244553,-200.0,0.00017,2]
[365825395,1749940244830,-220.54466901,0.00017,2]
[365825397,1749940244843,-237.68777588,0.00017,2]
[365825399,1749940244852,-200.0,0.00017,2]
[365825401,1749940244862,-796642.15303176,0.00017,2]
[365825405,1749940244888,-342254.71184512,0.00017,2]
[365825410,1749940244929,-183.82259855,0.00016899,2]
[365825412,1749940244939,-1355.51323137,0.00017,2]
[365825414,1749940244948,-7881.38930888,0.00017,2]
[365825416,1749940244959,-267.00583553,0.00017,2]
[365825419,1749940244971,-1165.58,0.00017,2]
[365825585,1749940246544,-1845.2000002,0.00016881,2]
[365825602,1749940246869,-90.2171998,0.00016881,2]
[365825604,1749940246879,-315.69940313,0.00016899,2]
[365825606,1749940246890,-184.30059687,0.00016899,2]
[365825607,1749940246899,-500.0,0.00016899,2]
[365825608,1749940246908,-500.0,0.00016899,2]
[365825609,1749940246917,-266.73415213,0.00016899,2]
[365825610,1749940246930,-233.26584787,0.00016899,2]
[365825611,1749940246939,-311.88654713,0.00016899,2]
[365825612,1749940246952,-188.11345287,0.00016899,2]
[365825613,1749940246962,-426.85504713,0.00016899,2]
[365825631,1749940272965,202.0,0.00015016,2]
[365825632,1749940349407,168.0,0.00014936,2]
[365825633,1749940361798,200.0,0.00015016,2]
[365825653,1749940713460,390.67,0.00013699,2]
[365825655,1749940814113,-151.83549565,0.00015828,2]
[365825656,1749940816430,-50.16450435,0.00015828,2]
[365825657,1749941002517,197.3799,0.00024998,120]
[365825658,1749941004367,271.69277369,0.00015765,2]
[365825659,1749941044946,-202.0,0.00015828,2]
[365825660,1749941044970,-36.20400549,0.00015842,2]
[365825661,1749941047357,-163.18053621,0.00015842,2]
[365825662,1749941049631,-50.6154583,0.00015842,2]
[365825663,1749941093751,668.82236736,0.00015761,2]
[365825664,1749941098909,413.76,0.00015507,2]
[365825665,1749941173428,-152.19,0.00015809,2]
[365825666,1749941180667,-49.81,0.00015809,2]
[365825667,1749941225891,894.97,0.00013563,2]
[365825668,1749941227704,-156.8859572,0.00015827,2]
[365825680,1749941240536,-152.27,0.00015809,2]
[365825699,1749941255084,-49.73,0.00015809,2]
[365825700,1749941255113,-158.85679214,0.00015827,2]
[365825701,1749941271478,-238.81946379,0.00015827,2]
[365825702,1749941273288,-250.1772149,0.00015827,2]
[365825703,1749941275644,-90.23057197,0.00015827,2]
[365825704,1749941277214,-154.82617451,0.00015857,2]
[365825705,1749941320934,250.0,0.0001542,2]
[365825706,1749941355266,649.48,0.00015424,2]
[365825707,1749941388513,23900.0,0.00015476,2]
[365825709,1749941431595,-379.67032862,0.00015857,2]
[365825710,1749941431607,-676.69349687,0.00015857,2]
[365825711,1749941431616,-1094.09396327,0.00015861,2]
[365825712,1749941431627,-117.09603673,0.00015861,2]
[365825713,1749941431636,-1211.19,0.00015865,2]
[365825714,1749941431646,-1211.19,0.00015869,2]
[365825715,1749941431654,-885.62396307,0.00015873,2]
[365825716,1749941431666,-325.56603693,0.00015873,2]
[365825717,1749941431675,-1211.19,0.00015878,2]
[365825718,1749941431684,-1200.0,0.00015879,2]
[365825719,1749941431694,-1211.19,0.00015882,2]
[365825720,1749941431703,-300.0,0.00015884,2]
[365825721,1749941431713,-300.0,0.00015884,2]
[365825722,1749941431722,-5272.62539467,0.00015885,2]
[365825723,1749941431731,-648.83640849,0.00015885,2]
[365825724,1749941431747,-234.01359151,0.00015885,2]
[365825725,1749941431756,-1578.55789247,0.00015885,2]
[365825726,1749941431819,-603.43210753,0.00015885,2]
[365825727,1749941431828,-3560.6,0.00015885,2]
[365825729,1749941431837,-299.99,0.00015885,2]
[365825731,1749941431847,-150.99,0.00015885,2]
[365825732,1749941431858,-300.0,0.00015885,2]
[365825734,1749941431868,-150.99,0.00015886,2]
[365825737,1749941431879,-1337.15700366,0.00015886,2]
[365825738,1749941431892,-2200.469976,0.00015886,2]
[365825741,1749941431955,-4237.23709747,0.00015886,2]
[365825743,1749941431967,-2225.12592287,0.00015886,2]
[365825745,1749941431977,-4681.55,0.00015886,2]
[365825747,1749941431989,-1211.19,0.00015886,2]
[365825749,1749941431999,-1211.19,0.0001589,2]
[365825752,1749941432009,-1000.0,0.00015893,2]
[365825753,1749941432018,-1211.19,0.00015894,2]
[365825756,1749941432029,-29746.01,0.00015894,2]
[365825758,1749941432038,-1211.19,0.00015898,2]
[365825759,1749941432047,-1211.19,0.00015902,2]
[365825761,1749941432057,-1211.19,0.00015907,2]
[365825763,1749941432066,-1211.19,0.00015911,2]
[365825765,1749941432076,-1211.19,0.00015915,2]
[365825767,1749941432085,-1211.19,0.00015919,2]
[365825769,1749941432094,-1211.19,0.00015923,2]
[365825771,1749941432103,-1211.19,0.00015927,2]
[365825773,1749941432112,-666.0,0.00015929,2]
[365825775,1749941432121,-1211.19,0.00015932,2]
[365825777,1749941432130,-1211.19,0.00015936,2]
[365825779,1749941432140,-1000.0,0.00015937,2]
[365825781,1749941432149,-410.5,0.00016,2]
[365825783,1749941432158,-249.44,0.00016067,2]
[365825785,1749941432168,-254.19,0.00016067,2]
[365825787,1749941432177,-247.92,0.00016067,2]
[365825789,1749941432186,-250.76,0.00016067,2]
[365825791,1749941432196,-254.06,0.00016067,2]
[365825793,1749941432205,-251.92,0.00016067,2]
[365825795,1749941432215,-151.0,0.00016149,2]
[365825797,1749941432224,-1957.856,0.00016149,2]
[365825799,1749941432234,-257.55087643,0.00016149,2]
[365825801,1749941432243,-207.4,0.00016149,2]
[365825803,1749941432253,-500.0,0.00016165,2]
[365825805,1749941432262,-2030.296672,0.00016204,2]
[365825807,1749941432272,-2105.41764886,0.00016259,2]
[365825809,1749941432281,-640.0,0.00016305,2]
[365825811,1749941432291,-923.0,0.00016311,2]
[365825813,1749941432300,-490.0,0.00016392,2]
[365825815,1749941432309,-200.0,0.000164,5]
[365825817,1749941432319,-1000.0,0.00016446,2]
[365825819,1749941432328,-500.0,0.000165,6]
[365825821,1749941432338,-700.0,0.000166,6]
[365825823,1749941432347,-1036.479613,0.0001666,2]
[365825825,1749941432356,-1000.0,0.000167,6]
[365825827,1749941432366,-625.0,0.000168,2]
[365825829,1749941432375,-1300.0,0.000168,6]
[365825831,1749941432384,-202.0,0.00016814,3]
[365825833,1749941432393,-868.22992952,0.00016835,2]
[365825835,1749941432402,-833.63237626,0.00016861,2]
[365825837,1749941432411,-1000.0,0.00016881,2]
[365825839,1749941432421,-1000.0,0.00016889,2]
[365825840,1749941432430,-951.962,0.00016892,2]
[365825842,1749941432440,-2500.0,0.00016893,2]
[365825844,1749941432450,-393.23683681,0.00016894,2]
[365825846,1749941432461,-393.23683677,0.00016895,2]
[365825848,1749941432471,-393.23683677,0.00016895,2]
[365825849,1749941432480,-393.23683677,0.00016896,2]
[365825850,1749941432490,-393.23683677,0.00016897,2]
[365825851,1749941432500,-393.23683677,0.00016897,2]
[365825852,1749941432510,-393.23683677,0.00016898,2]
[365825853,1749941432519,-393.23683677,0.00016899,2]
[365825854,1749941432528,-393.23683677,0.00016899,2]
[365825855,1749941432537,-143.83079817,0.000169,2]
[365825856,1749941432553,-357.17718468,0.000169,2]
[365825857,1749941432567,-507.63375317,0.000169,2]
[365825858,1749941432578,-667.73516398,0.000169,2]
[365825859,1749941432588,-1000.0,0.000169,2]
[365825860,1749941432597,-211.0,0.000169,2]
[365825861,1749941432607,-200.0,0.000169,6]
[365825862,1749941432616,-243.82736716,0.000169,2]
[365825863,1749941432628,-287.20997678,0.000169,2]
[365825864,1749941432638,-341.61414928,0.000169,2]
[365825865,1749941432647,-6205.49767055,0.000169,2]
[365825866,1749941432657,-393.23683677,0.000169,2]
[365825867,1749941432666,-625.0,0.000169,2]
[365825868,1749941432676,-500.0,0.00016973,2]
[365825869,1749941432685,-500.0,0.00016973,2]
[365825870,1749941432695,-1000.0,0.00016986,2]
[365825871,1749941432705,-8031.11495727,0.0001699,2]
[365825872,1749941432714,-197.76589758,0.0001699,2]
[365825873,1749941432723,-488.0337896,0.00016993,2]
[365825874,1749941432732,-30355.52752635,0.00016993,2]
[365825875,1749941437603,-500.0,0.00016257,2]
[365825876,1749941437612,-500.0,0.00016257,2]
[365825877,1749941437622,-500.0,0.00016257,2]
[365825878,1749941437632,-500.0,0.00016257,2]
[365825879,1749941437641,-450.92807358,0.00016257,2]
[365825880,1749941437651,-156.38776634,0.00016257,2]
[365825881,1749941437660,-500.0,0.00016257,2]
[365825882,1749941437670,-312.27183285,0.00016257,2]
[365825883,1749941437680,-363.84945562,0.00016257,2]
[365825884,1749941437690,-1695.29331391,0.00016993,2]
[365825885,1749941437702,-827.90190974,0.00016993,2]
[365825886,1749941437712,-2076.0089385,0.00016993,2]
[365825887,1749941437721,-451.88936204,0.00016994,2]
[365825888,1749941437731,-500.0,0.00016999,2]
[365825889,1749941437740,-599.39800073,0.00016999,2]
[365825890,1749941437749,-342.97230443,0.00016999,2]
[365825892,1749941437759,-500.0,0.00016999,2]
[365825895,1749941437769,-500.0,0.00016999,2]
[365825897,1749941437779,-500.0,0.00016999,2]
[365825939,1749941438169,-279.7804786,0.00016999,2]
[365825941,1749941438188,-500.0,0.00016999,2]
[365825943,1749941438198,-500.0,0.00016999,2]
[365825945,1749941438207,-500.0,0.00016999,2]
[365825947,1749941438217,-500.0,0.00016999,2]
[365825949,1749941438227,-502.70743167,0.00016999,2]
[365825951,1749941438236,-435.18146928,0.00016999,2]
[365825954,1749941438253,-64.81853072,0.00016999,2]
[365825956,1749941438262,-260.69317328,0.00016999,2]
[365825959,1749941438278,-239.30682672,0.00016999,2]
[365825961,1749941438287,-276.11737688,0.00016999,2]
[365826088,1749941439641,-223.88262312,0.00016999,2]
[365826090,1749941439650,-500.0,0.00016999,2]
[365826092,1749941439660,-500.0,0.00016999,2]
[365826094,1749941439669,-500.0,0.00016999,2]
[365826096,1749941439678,-250.0,0.00016999,2]
[365826099,1749941439687,-150.0,0.00016999,2]
[365826102,1749941439696,-157.82422004,0.00016999,2]
[365826104,1749941439706,-300.0,0.00016999,2]
[365826106,1749941439714,-300.0,0.00016999,2]
[365826108,1749941439723,-300.0,0.00016999,2]
[365826110,1749941439733,-300.0,0.00016999,2]
[365826112,1749941439742,-300.0,0.00016999,2]
[365826114,1749941439751,-150.0,0.00016999,2]
[365826116,1749941439760,-150.0,0.00016999,2]
[365826118,1749941439769,-150.0,0.00016999,2]
[365826120,1749941439779,-150.0,0.00016999,2]
[365826122,1749941439789,-150.0,0.00016999,2]
[365826124,1749941439798,-1000.0,0.00016999,2]
[365826126,1749941439807,-169.16,0.00016999,2]
[365826128,1749941439816,-1001.6933,0.00016999,2]
[365826130,1749941439826,-250.52207526,0.00016999,2]
[365826132,1749941439835,-150.0,0.00016999,2]
[365826134,1749941439844,-200.0,0.00016999,2]
[365826136,1749941439854,-150.0,0.00016999,2]
[365826138,1749941439863,-150.0,0.00016999,2]
[365826140,1749941439872,-150.0,0.00016999,2]
[365826142,1749941439882,-150.0,0.00016999,2]
[365826144,1749941439891,-673.0,0.00016999,2]
[365826146,1749941439900,-201.21113638,0.00016999,2]
[365826148,1749941439909,-150.0,0.00016999,2]
[365826150,1749941439919,-500.0,0.00016999,2]
[365826152,1749941439928,-500.0,0.00016999,2]
[365826154,1749941439938,-300.0,0.00016999,2]
[365826156,1749941439947,-150.0,0.00016999,2]
[365826158,1749941439956,-200.0,0.00016999,2]
[365826160,1749941439966,-500.0,0.00016999,2]
[365826162,1749941439976,-150.0,0.00016999,2]
[365826164,1749941439989,-150.0,0.00016999,2]
[365826166,1749941439999,-150.0,0.00016999,2]
[365826168,1749941440008,-501.0,0.00017,2]
[365826170,1749941440017,-677.75661568,0.00017,2]
[365826172,1749941440028,-759151.44964586,0.00017,2]
[365826174,1749941440037,-637.0,0.00017,2]
[365826176,1749941440046,-802.0,0.00017,2]
[365826178,1749941440056,-1166.4,0.00017,2]
[365826180,1749941440066,-558.0,0.00017,2]
[365826182,1749941440075,-1383.641,0.00017,2]
[365826184,1749941440084,-927.0,0.00017,2]
[365826186,1749941440094,-590.0,0.00017,2]
[365826188,1749941440103,-2001.0,0.00017,2]
[365826190,1749941440112,-1673.0,0.00017,2]
[365826192,1749941440121,-884.0,0.00017,2]
[365826194,1749941440130,-4167.504,0.00017,2]
[365826196,1749941440139,-4087.0,0.00017,2]
[365826198,1749941440148,-155.0,0.00017,2]
[365826200,1749941440157,-853.0,0.00017,2]
[365826202,1749941440167,-356260.08537621,0.00017,2]
[365826205,1749941440183,-295.506,0.00017,2]
[365826207,1749941440194,-1950.0,0.00017,2]
[365826209,1749941440205,-42023.48177759,0.00017,2]
[365826212,1749941440218,-1060.7,0.00017,2]
[365826214,1749941440229,-5932.81606621,0.00017,2]
[365826217,1749941440241,-500.0,0.00017,2]
[365826489,1749941442841,-5516.98,0.00017,2]
[365826789,1749941445962,-659.17053976,0.00017,2]
[365827417,1749941556886,1000.0,0.00025,120]
[365827418,1749941568078,1000.0,0.00025,120]
[365827419,1749941570991,1000.0,0.00025,120]
[365827420,1749941753825,-287.21230126,0.00015838,2]
[365827422,1749941794605,294.26,0.00015794,2]
[365827423,1749941864549,1208.73942803,0.00015738,2]
[365827424,1749941864596,-201.0,0.00015818,2]
[365827425,1749941977358,-210.99287568,0.00015807,2]
[365827426,1749941979920,-166.16,0.00015807,2]
[365827427,1749941983623,-122.84712432,0.00015807,2]
[365827428,1749941983648,-202.0,0.00015818,2]
[365827429,1749942006982,154.34736332,0.00017973,30]
[365827430,1749942035720,183879.796047,0.0002,30]
[365827432,1749942139278,401.6,0.00013699,2]
[365827433,1749942197996,150.0,0.00015741,7]
[365827434,1749942201984,201.0,0.000158,2]
[365827435,1749942264737,206.88,0.00015671,2]
[365827436,1749942344759,273.85,0.00015637,2]
[365827437,1749942360449,163.49,0.00015653,2]
[365827439,1749942409772,2508.92,0.0001568,2]
[365827445,1749942445662,513.95,0.0001569,2]
[365827446,1749942451356,2840.72331811,0.0002,30]
[365827463,1749942476072,865.1,0.00013774,2]
[365827464,1749942486731,1165.5692106,0.0002,30]
[365827465,1749942557134,250.0,0.00015634,2]
[365827466,1749942567076,906.0,0.0002,30]
[365827468,1749942631690,-202.0,0.00015805,2]
[365827470,1749942631700,-378.78769874,0.00015838,2]
[365827471,1749942631709,-250.0,0.00015848,2]
[365827472,1749942631719,-964.6,0.00015955,2]
[365827473,1749942631729,-517.32,0.00015977,2]
[365827474,1749942631738,-300.0,0.00015979,2]
[365827475,1749942631748,-1200.0,0.00015979,2]
[365827476,1749942631757,-7300.06,0.0001598,2]
[365827477,1749942631767,-250.0,0.00015999,2]
[365827478,1749942631776,-4085.87,0.00016,2]
[365827479,1749942631786,-4085.87,0.00016,2]
[365827480,1749942631795,-371.11257607,0.00016,2]
[365827481,1749942631806,-1706.9000001,0.00016,2]
[365827482,1749942631817,-303.51135824,0.00016,2]
[365827483,1749942631975,-1704.34606559,0.00016,2]
[365827484,1749942631984,-4085.87,0.00016,2]
[365827485,1749942631994,-4085.87,0.00016,2]
[365827486,1749942632004,-4286.24,0.00016,2]
[365827487,1749942632013,-4286.24,0.00016,2]
[365827488,1749942632023,-4286.24,0.00016,2]
[365827489,1749942632032,-4286.24,0.00016,2]
[365827490,1749942632041,-4286.24,0.00016,2]
[365827491,1749942632050,-1000.0,0.00016027,2]
[365827492,1749942632059,-300.0,0.00016027,2]
[365827493,1749942632068,-253.64,0.00016027,2]
[365827494,1749942632079,-254.0,0.00016027,2]
[365827495,1749942632089,-254.34,0.00016027,2]
[365827497,1749942632098,-245.06,0.00016027,2]
[365827499,1749942632108,-252.03,0.00016027,2]
[365827501,1749942632117,-254.88,0.00016027,2]
[365827503,1749942632128,-248.87,0.00016027,2]
[365827505,1749942632137,-253.53,0.00016027,2]
[365827506,1749942632147,-248.27,0.00016027,2]
[365827507,1749942632156,-252.36,0.00016027,2]
[365827508,1749942632165,-249.83,0.00016027,2]
[365827509,1749942632175,-250.94,0.00016027,2]
[365827510,1749942632184,-253.11,0.00016027,2]
[365827511,1749942632193,-254.36,0.00016027,2]
[365827512,1749942632203,-152.07,0.00016027,2]
[365827513,1749942632212,-250.07,0.00016027,2]
[365827515,1749942632222,-248.39,0.00016027,2]
[365827517,1749942632231,-253.51,0.00016027,2]
[365827519,1749942632240,-249.21,0.00016027,2]
[365827521,1749942632250,-865.1,0.00016037,2]
[365827523,1749942632260,-151.0,0.00016149,2]
[365827525,1749942632269,-1957.856,0.00016149,2]
[365827527,1749942632279,-207.4,0.00016149,2]
[365827529,1749942632288,-500.0,0.00016164,2]
[365827531,1749942632298,-500.0,0.00016164,2]
[365827533,1749942632308,-200.0,0.00016164,2]
[365827535,1749942632317,-500.0,0.00016164,2]
[365827538,1749942632327,-316.12544027,0.00016164,2]
[365827540,1749942632339,-500.0,0.00016164,2]
[365827541,1749942632348,-500.0,0.00016164,2]
[365827544,1749942632358,-242.82050188,0.00016164,2]
[365827546,1749942632367,-500.0,0.00016165,2]
[365827548,1749942632376,-999.99,0.00016165,2]
[365827550,1749942632385,-1548.96,0.00016165,2]
[365827552,1749942632395,-1289.28754711,0.00016204,2]
[365827554,1749942632404,-248.78,0.00016257,2]
[365827556,1749942632413,-253.95,0.00016257,2]
[365827557,1749942632422,-248.69,0.00016257,2]
[365827560,1749942632433,-252.8,0.00016257,2]
[365827561,1749942632448,-152.0,0.00016324,3]
[365827563,1749942632462,-151.0,0.00016404,2]
[365827565,1749942632472,-151.0,0.00016408,2]
[365827567,1749942632481,-151.0,0.0001641,2]
[365827569,1749942632491,-151.0,0.00016414,2]
[365827571,1749942632506,-196.19,0.00016415,2]
[365827573,1749942632517,-151.0,0.00016416,2]
[365827575,1749942632527,-1107.0,0.00016433,2]
[365827577,1749942632536,-833.63237626,0.00016613,2]
[365827579,1749942632547,-1079.0,0.00016619,2]
[365827581,1749942632556,-254.24,0.0001662,2]
[365827583,1749942632566,-913.471548,0.0001666,2]
[365827585,1749942632576,-378.0,0.00016775,2]
[365827587,1749942632588,-434.27940363,0.00016812,2]
[365827589,1749942632598,-202.0,0.00016832,3]
[365827591,1749942632608,-2000.0,0.00016864,2]
[365827593,1749942632618,-4087.0,0.0001688,2]
[365827595,1749942632628,-853.0,0.0001688,2]
[365827597,1749942632637,-884.0,0.0001688,2]
[365827599,1749942632647,-872.295,0.00016899,2]
[365827601,1749942632657,-2191.60316336,0.00016899,2]
[365827603,1749942632667,-2191.60316331,0.00016899,2]
[365827605,1749942632676,-2191.60316331,0.00016899,2]
[365827607,1749942632686,-2191.60316331,0.00016899,2]
[365827609,1749942632695,-2191.60316331,0.00016899,2]
[365827610,1749942632705,-2191.60316331,0.000169,2]
[365827612,1749942632714,-2191.60316331,0.000169,2]
[365827615,1749942632724,-4363.8843,0.000169,2]
[365827617,1749942632735,-2191.60316331,0.000169,2]
[365827619,1749942632747,-2191.60316331,0.000169,2]
[365827621,1749942632757,-298.91238062,0.000169,2]
[365827623,1749942632767,-20755.66355931,0.000169,2]
[365827625,1749942632778,-2191.60316331,0.000169,2]
[365827627,1749942632787,-6017.08987342,0.000169,2]
[365827629,1749942632797,-208.99488612,0.000169,2]
[365827631,1749942632807,-275.93496729,0.000169,2]
[365827633,1749942632816,-1455.14105692,0.000169,2]
[365827635,1749942632826,-500.0,0.00016973,2]
[365827637,1749942632836,-500.0,0.00016973,2]
[365827639,1749942632846,-500.0,0.00016973,2]
[365827641,1749942632856,-500.0,0.00016973,2]
[365827643,1749942632867,-522.43677586,0.00016973,2]
[365827645,1749942632876,-500.0,0.00016973,2]
[365827647,1749942632886,-500.0,0.00016973,2]
[365827649,1749942632896,-500.0,0.00016973,2]
[365827651,1749942632906,-6364.236835,0.00016993,2]
[365827653,1749942632915,-56025.60303384,0.00016993,2]
[365827655,1749942632930,-5682.10055516,0.00016993,2]
[365827657,1749942632940,-2091.6865412,0.00016993,2]
[365827659,1749942632950,-861.0578105,0.00016993,2]
[365827661,1749942632959,-1037.47829751,0.00016995,2]
[365827663,1749942632969,-339.10766231,0.00016999,2]
[365827665,1749942632979,-315.0,0.00016999,2]
[365827667,1749942632988,-270.0,0.00016999,2]
[365827669,1749942632998,-257.34726601,0.00016999,2]
[365827672,1749942633008,-300.0,0.00016999,2]
[365827673,1749942633017,-217.16478694,0.00016999,2]
[365827676,1749942633027,-150.0,0.00016999,2]
[365827677,1749942633037,-200.0,0.00016999,2]
[365827679,1749942633047,-150.0,0.00016999,2]
[365827681,1749942633056,-500.0,0.00016999,2]
[365827683,1749942633066,-500.0,0.00016999,2]
[365827721,1749942633439,-150.0,0.00016999,2]
[365827725,1749942633472,-150.0,0.00016999,2]
[365827727,1749942633481,-150.0,0.00016999,2]
[365827729,1749942633492,-206.02997179,0.00016999,2]
[365827731,1749942633505,-1000.0,0.00016999,2]
[365827733,1749942633516,-169.16,0.00016999,2]
[365827735,1749942633526,-150.0,0.00016999,2]
[365827737,1749942633535,-300.0,0.00016999,2]
[365827739,1749942633546,-150.0,0.00016999,2]
[365827741,1749942633555,-500.0,0.00016999,2]
[365827743,1749942633565,-150.0,0.00016999,2]
[365827745,1749942633575,-758.0,0.00016999,2]
[365827747,1749942633586,-201.21113638,0.00016999,2]
[365827749,1749942633595,-150.0,0.00016999,2]
[365827751,1749942633605,-150.0,0.00016999,2]
[365827753,1749942633614,-500.0,0.00016999,2]
[365827755,1749942633624,-250.52207526,0.00016999,2]
[365827757,1749942633634,-150.0,0.00016999,2]
[365827759,1749942633644,-201.37534164,0.00016999,2]
[365827761,1749942633653,-292.41870439,0.00016999,2]
[365827763,1749942633663,-150.0,0.00016999,2]
[365827765,1749942633672,-150.0,0.00016999,2]
[365827767,1749942633681,-150.0,0.00016999,2]
[365827768,1749942633691,-150.0,0.00016999,2]
[365827770,1749942633701,-503.0,0.00017,2]
[365827772,1749942633710,-150.163,0.00017,2]